Workbook

Sheet Main
A1: Breakeven Prices | B1: Date: | C1: =TODAY() -> 2015-10-18
A2: Created: 20 February 2012 | B2: Copyright © 2015 by Michael L. Thonney
A3: Updated: | B3: 2015-10-18
A4: Cells in green can be changed.
A6: Terminal market feeder lamb price: | B6: 2.6 | C6: /lb
A7: Terminal market finished price: | B7: 2.26 | C7: /lb
A9: Feeder lamb price per pound: | B9: 2.960998944 | C9: Initial wt: | D9: 65 | E9: lb
A10: Finished lamb price per pound: | B10: 2.26 | C10: Final wt: | D10: 100 | E10: lb
A11: Price of feed, $/ton: | B11: 300 | C11: Gain: | D11: =D10-D9 -> 35 | E11: lb
A12: Feed/gain: | B12: 4 | C12: Death loss: | D12: 0.02
A13: ADG, lb/day: | B13: 0.6 | C13: Gained: | D13: 0.25 | E13: (Proportion of possible gain made before death.)
A14: Days fed: | B14: =(D10-D9)/B13 -> 58.33333333 | C14: Interest rate: | D14: 0.05 | E14: per year on feeder lamb value
B16: Break even costs (in red)
A17: Pound of gain: | B17: ='BrEv COG'!B13 -> 0.9383703366 | C17: ='Cost of gain'!B12 -> 0.9383703366 | D17: =C17 -> 0.9383703366 | E17: ="=> Sell finished lambs at Finished lamb price if cost of gain is less than $" & FIXED(B17,2) &"/pound." -> => Sell finished lambs at Finished lamb price if cost of gain is less than $0.94/pound.
A18: Pound of feeder lamb: | B18: =B9 -> 2.960998944 | C18: ='BrEv Feeder'!B13 -> 2.960998944 | D18: =B18 -> 2.960998944 | E18: ="=> Sell feeders at Feeder lamb price if expected price is equal to or greater than $" & FIXED(C18,2) &"/pound." -> => Sell feeders at Feeder lamb price if expected price is equal to or greater than $2.96/pound.
A19: Pound of finished lamb: | B19: =B10 -> 2.26 | C19: =B19 -> 2.26 | D19: ='BrEv Finished'!B14 -> 2.26 | E19: ="=> Sell finished lambs at Finished lamb price if expected price is more than $" & FIXED(D19,2) &"/pound." -> => Sell finished lambs at Finished lamb price if expected price is more than $2.26/pound.
A21: Number of feeders: | B21: 60 | C21: Per lamb | D21: Farm price discount for feeders: | G21: 0 | H21: /lb (off Terminal market price)
A22: Value if sold as feeders: | B22: =(B18-B27)*D9*B21 -> 9623.606293 | C22: =B22/B$21 -> 160.3934382 | F22: Farm price discount for finished: | G22: 0 | I22: Value | J22: Per lamb
A23: Value if sold as finished: | B23: =((B19-B31)*(1-D12)*D10-D11*B30)*B21 -> 9623.606293 | C23: =B23/B$21 -> 160.3934382 | F23: Farm feeder price: | G23: =B6-G21 -> 2.6 | H23: /lb | I23: =G23*D9*B21 -> 10140 | J23: =I23/B21 -> 169
A24: Profit from marketing finished lambs: | B24: =B23-B22 -> 0 | C24: =C23-C22 -> 0 | F24: Farm finished price: | G24: =B7-G22 -> 2.26 | H24: /lb | I24: =G24*D10*B21 -> 13560 | J24: =I24/B21 -> 226
D25: Difference (finished lambs minus feeder lambs): | I25: =I24-I23 -> 3420 | J25: =J24-J23 -> 57
A27: Cost of marketing feeder lambs: | B27: =FeederMarketing!C12 -> 0.4934075867 | C27: /lb marketed (see FeederMarketing sheet)
A28: Yardage: | B28: =Yardage!B8 -> 0.2914285714 | C28: /lb (see Yardage sheet)
A29: Feed cost of gain: | B29: ='Cost of gain'!B8 -> 0.603 | C29: /lb (includes Yardage; see Cost of gain sheet)
A30: Total cost of gain: | B30: ='Cost of gain'!B12 -> 0.9383703366 | C30: /lb (see Cost of gain sheet)
A31: Cost of marketing finished lambs: | B31: =FinishedMarketing!C12 -> 0.2882 | C31: /lb marketed (see FinishedMarketing sheet)

Sheet Yardage
A1: Yardage cost
A2: Cells in green can be changed.
A3: Yardage: | B3: 10000 | C3: per year | D3: Yardage covers cost of management, labor, bedding, capital equipment.
A4: Lambs: | B4: 1000 | C4: per year
A5: Yardage: | B5: =B3/B4 -> 10 | C5: /lamb per head of capacity
A6: Yardage: | B6: =B5/Main!B14 -> 0.1714285714 | C6: /lamb/day | D6: (No death losses.)
A7: Yardage: | B7: =B6+B6*Main!D12 -> 0.1748571429 | C7: /lamb/day | D7: (Includes death losses.)
A8: Yardage | B8: =B7/Main!B13 -> 0.2914285714 | C8: /lb gain | D8: (Includes death losses.)

Sheet FeederMarketing
A1: Feeder marketing costs
A2: Cells in green can be changed.
A3: Shrinkage | B3: 0.1
A4: Shrink | B4: =B3*Main!D9 -> 6.5 | C4: lb
C5: Per lb marketed
A6: Shrinkage cost | B6: =B4*Main!B9 -> 19.24649314 | C6: =B6/Main!D$9 -> 0.2960998944 | D6: /lb marketed
A7: Commision | B7: 5 | C7: =B7/Main!D$9 -> 0.07692307692 | D7: /lb marketed
A8: Feed at yards | B8: 0.5 | C8: =B8/Main!D$9 -> 0.007692307692 | D8: /lb marketed
A9: Trucking | B9: 7 | C9: =B9/Main!D$9 -> 0.1076923077 | D9: /lb marketed
A10: Checkoff per pound | C10: 0.005 | D10: ($0.005 per pound marketed)
B12: Total: | C12: =SUM(C6:C10) -> 0.4934075867 | D12: /lb marketed
B13: Amount: | C13: =C12*Main!D9 -> 32.07149314

Sheet FinishedMarketing
A1: Finished marketing costs
A2: Cells in green can be changed.
A3: Shrinkage | B3: 0.07
A4: Shrink | B4: =B3*Main!D10 -> 7 | C4: lb
C5: Per lb marketed
A6: Shrinkage cost | B6: =B4*Main!B10 -> 15.82 | C6: =B6/Main!D$10 -> 0.1582 | D6: /lb marketed
A7: Commision | B7: 5 | C7: =B7/Main!D$10 -> 0.05 | D7: /lb marketed
A8: Feed at yards | B8: 0.5 | C8: =B8/Main!D$10 -> 0.005 | D8: /lb marketed
A9: Trucking | B9: 7 | C9: =B9/Main!D$10 -> 0.07 | D9: /lb marketed
A10: Checkoff per pound | C10: 0.005 | D10: ($0.005 per pound marketed)
B12: Total: | C12: =SUM(C6:C10) -> 0.2882 | D12: /lb marketed

Sheet Cost of gain
A1: Cost of gain
A3: Feed price/ton | B3: =Main!B11 -> 300
A4: Price | B4: =B3/2000 -> 0.15 | C4: /lb feed
A5: Feed/gain | B5: =Main!B12 -> 4 | C5: (No death loss.)
A6: Feed cost | B6: =B4*B5 -> 0.6 | C6: /lb gain
A7: Feed/gain | B7: =B5+B5*Main!D12*Main!D13 -> 4.02 | C7: (With death loss.)
A8: Feed cost/gain | B8: =B4*B7 -> 0.603 | C8: /lb gain (all feed charged to marketed lambs)
A9: Yardage/lb gain | B9: =Yardage!B8 -> 0.2914285714 | C9: (With death loss. See Yardage sheet.)
A10: Interest on feeder lamb | B10: =Main!B9*Main!D9*Main!B14*Main!D14/365 -> 1.53796178 | C10: (per days fed)
A11: Interest on feeder lamb | B11: =B10/Main!D11 -> 0.04394176515 | C11: /lb gain
A12: Total cost | B12: =B8+B9+B11 -> 0.9383703366 | C12: /lb gain

Sheet BrEv COG
A1: Break-even cost of gain
A3: NH value of finished lambs | B3: =Main!B19*Main!D10 -> 226
A4: minus | B4: =Main!D10*Main!B10*Main!D12 -> 4.52 | C4: (loss of lamb weight due to death losses)
A5: minus | B5: =(Main!D10-Main!D10*Main!D12)*Main!B31 -> 28.2436 | C5: (Cost of marketing)
A6: equals | B6: =B3-B4-B5 -> 193.2364 | C6: (minimum farm value of finished lamb)
A8: NH value of feeder lambs | B8: =Main!B9*Main!D9 -> 192.4649314
A9: minus | B9: =Main!D9*Main!B27 -> 32.07149314 | C9: (Cost of marketing)
A10: equals | B10: =B8-B9 -> 160.3934382 | C10: (minimum farm value of feeder lamb)
A12: Net value | B12: =B6-B10 -> 32.84296178
A13: Value per pound of gain | B13: =B12/Main!D11 -> 0.9383703366

Sheet BrEv Feeder
A1: Break-even value of feeder lambs
A3: NH value of finished lambs | B3: =Main!B19*Main!D10 -> 226
A4: minus | B4: =Main!D10*Main!B10*Main!D12 -> 4.52 | C4: (loss of lamb weight due to death losses)
A5: minus | B5: =(Main!D10-Main!D10*Main!D12)*Main!B31 -> 28.2436 | C5: (Cost of marketing)
A6: equals | B6: =B3-B4-B5 -> 193.2364 | C6: (minimum farm value of finished lamb)
A8: Cost of gain | B8: =Main!B30*Main!D11 -> 32.84296178
A10: Break-even value of feeder lamb | B10: =B6-B8 -> 160.3934382
A11: plus | B11: =Main!D9*Main!B27 -> 32.07149314 | C11: (Cost of marketing; include because we want the potential value of the lamb)
A12: equals | B12: =B10+B11 -> 192.4649314 | C12: (maximum farm value of feeder lambs to break even selling finished lambs)
A13: Feeder lamb value per pound | B13: =B12/Main!D9 -> 2.960998944

Sheet BrEv Finished
A1: Break-even value of finished lambs
A3: NH value of feeder lambs | B3: =Main!B9*Main!D9 -> 192.4649314
A4: minus | B4: =Main!D9*Main!B27 -> 32.07149314 | C4: (Cost of marketing)
A5: equals | B5: =B3-B4 -> 160.3934382 | C5: (minimum farm value of feeder lambs)
A7: Cost of gain | B7: =Main!B30*Main!D11 -> 32.84296178
A9: Break-even value of finished lamb | B9: =B5+B7 -> 193.2364
A10: plus | B10: =Main!B10*Main!D10*Main!D12 -> 4.52 | C10: (death loss)
A11: plus | B11: =Main!D10*Main!B31 -> 28.82 | C11: (Cost of marketing)
A12: minus | B12: =B11*Main!D12 -> 0.5764 | C12: (No marketing cost for dead lambs)
A13: equals | B13: =B9+B10+B11-B12 -> 226 | C13: (minimum farm value of finished lambs to break even)
A14: per pound | B14: =B13/Main!D10 -> 2.26
